fUSD/lending_fUSD_20250201
["ID","MTS","AMOUNT","RATE_DAILY","PERIOD"]
[351215689,1738439438663,-16197.71077286,0.00015779,2]
[351215690,1738439438673,-631.07943186,0.00015779,2]
[351215691,1738439438685,-126524.5569778,0.00015779,2]
[351215692,1738439438696,-5713.99850515,0.00015779,2]
[351215693,1738439438707,-31363.11580125,0.00015779,2]
[351215694,1738439438744,-2035.6336,0.00015779,2]
[351215695,1738439438755,-385.645,0.00015779,2]
[351215696,1738439438766,-444.0,0.00015779,2]
[351215697,1738439438779,-3721.09967535,0.00015779,2]
[351215698,1738439438792,-321.3887543,0.00015779,2]
[351215699,1738439438807,-3610.35556479,0.00015779,2]
[351215700,1738439438824,-12725.94927672,0.00015779,2]
[351215701,1738439438842,-2151.50881932,0.00015779,2]
[351215702,1738439438854,-427.43139264,0.00015779,2]
[351215878,1738439440515,-83287.55178026,0.00015779,2]
[351215880,1738439440525,-258.99558793,0.00015779,2]
[351215882,1738439440534,-500.0,0.00015779,2]
[351215884,1738439440543,-500.0,0.00015779,2]
[351215885,1738439440556,-499.1716692,0.00015779,2]
[351215886,1738439440566,-500.0,0.00015779,2]
[351215887,1738439440575,-290.61956281,0.00015779,2]
[351215888,1738439440585,-500.0,0.00015779,2]
[351215889,1738439440594,-184.035254,0.00015779,2]
[351215890,1738439440604,-151.0,0.00015779,2]
[351215891,1738439440614,-151.0,0.00015779,2]
[351215892,1738439440623,-151.206476,0.00015779,2]
[351215893,1738439440632,-151.0,0.00015779,2]
[351215894,1738439440641,-151.0,0.00015779,2]
[351215895,1738439440651,-151.0,0.00015779,2]
[351215897,1738439440663,-151.0,0.00015779,2]
[351215899,1738439440676,-151.0,0.00015779,2]
[351215901,1738439440691,-151.0,0.00015779,2]
[351215903,1738439440703,-151.0,0.00015779,2]
[351215906,1738439440714,-2352.534614,0.00015779,2]
[351215908,1738439440723,-2352.534614,0.00015779,2]
[351215910,1738439440732,-239.001908,0.00015779,2]
[351215912,1738439440741,-200.130268,0.00015779,2]
[351215914,1738439440750,-239.001908,0.00015779,2]
[351215916,1738439440759,-151.0,0.00015779,2]
[351215918,1738439440769,-200.130268,0.00015779,2]
[351215920,1738439440779,-851.580421,0.00015779,2]
[351215922,1738439440789,-151.0,0.00015779,2]
[351215924,1738439440809,-851.580421,0.00015779,2]
[351215926,1738439440818,-151.0,0.00015779,2]
[351215927,1738439440828,-590.306728,0.00015779,2]
[351215929,1738439440839,-590.306728,0.00015779,2]
[351215931,1738439440848,-151.0,0.00015779,2]
[351215933,1738439440858,-151.0,0.00015779,2]
[351215935,1738439440871,-151.0,0.00015779,2]
[351215937,1738439440881,-151.0,0.00015779,2]
[351215939,1738439440891,-151.0,0.00015779,2]
[351215941,1738439440900,-437.949689,0.00015779,2]
[351215943,1738439440910,-151.0,0.00015779,2]
[351215945,1738439440920,-151.0,0.00015779,2]
[351215948,1738439440930,-437.949689,0.00015779,2]
[351215950,1738439440939,-247.77288,0.00015779,2]
[351215951,1738439440947,-151.0,0.00015779,2]
[351215953,1738439440956,-151.0,0.00015779,2]
[351215955,1738439440966,-1274.576079,0.00015779,2]
[351215957,1738439440975,-1274.576079,0.00015779,2]
[351215959,1738439440985,-281.61353311,0.00015779,2]
[351215961,1738439440996,-2284.2994,0.0001578,2]
[351215963,1738439441006,-100654.9819,0.0001578,2]
[351215966,1738439441016,-500.0,0.0001578,2]
[351215968,1738439441026,-852.1545,0.0001578,2]
[351215970,1738439441035,-152.17950909,0.0001578,2]
[351215971,1738439441044,-151.0,0.0001578,2]
[351215973,1738439441058,-151.0,0.0001578,2]
[351215975,1738439441067,-151.0,0.0001578,2]
[351215977,1738439441076,-151.0,0.0001578,2]
[351215979,1738439441086,-151.0,0.0001578,2]
[351215981,1738439441095,-151.0,0.0001578,2]
[351215983,1738439441104,-151.0,0.0001578,2]
[351215985,1738439441114,-151.0,0.0001578,2]
[351215987,1738439441124,-151.0,0.0001578,2]
[351215989,1738439441133,-151.0,0.0001578,2]
[351215991,1738439441142,-151.0,0.0001578,2]
[351215993,1738439441152,-2352.534614,0.0001578,2]
[351215995,1738439441162,-2352.534614,0.0001578,2]
[351215997,1738439441171,-239.001908,0.0001578,2]
[351215999,1738439441181,-200.130268,0.0001578,2]
[351216001,1738439441191,-239.001908,0.0001578,2]
[351216003,1738439441200,-151.0,0.0001578,2]
[351216005,1738439441210,-200.130268,0.0001578,2]
[351216007,1738439441220,-851.580421,0.0001578,2]
[351216009,1738439441229,-151.0,0.0001578,2]
[351216011,1738439441240,-851.580421,0.0001578,2]
[351216013,1738439441249,-151.0,0.0001578,2]
[351216015,1738439441258,-590.306728,0.0001578,2]
[351216017,1738439441268,-590.306728,0.0001578,2]
[351216019,1738439441277,-151.0,0.0001578,2]
[351216021,1738439441287,-151.0,0.0001578,2]
[351216023,1738439441297,-151.0,0.0001578,2]
[351216025,1738439441311,-151.0,0.0001578,2]
[351216028,1738439441320,-151.0,0.0001578,2]
[351216029,1738439441330,-437.949689,0.0001578,2]
[351216031,1738439441340,-151.0,0.0001578,2]
[351216033,1738439441349,-151.0,0.0001578,2]
[351216035,1738439441358,-437.949689,0.0001578,2]
[351216037,1738439441367,-151.0,0.0001578,2]
[351216039,1738439441377,-151.0,0.0001578,2]
[351216042,1738439441386,-1274.576079,0.0001578,2]
[351216044,1738439441395,-1274.576079,0.0001578,2]
[351216046,1738439441405,-6216.06617163,0.00015796,2]
[351216047,1738439441416,-6650.07563108,0.00015799,2]
[351216049,1738439441425,-159.52274397,0.00015799,2]
[351216051,1738439441436,-6216.06617163,0.00015853,2]
[351216053,1738439441445,-1000.0,0.00015862,2]
[351216055,1738439441456,-151.0,0.00015863,2]
[351216057,1738439441466,-151.0,0.00015863,2]
[351216059,1738439441475,-151.0,0.00015863,2]
[351216061,1738439441485,-199.263195,0.00015863,2]
[351216063,1738439441494,-10000.0,0.00015863,2]
[351216065,1738439441504,-168.44842,0.00015863,2]
[351216067,1738439441513,-7532.090433,0.00015863,2]
[351216069,1738439441522,-496.937908,0.00015863,2]
[351216071,1738439441532,-168.44842,0.00015863,2]
[351216073,1738439441541,-496.937908,0.00015863,2]
[351216075,1738439441553,-151.0,0.00015863,2]
[351216078,1738439441563,-151.0,0.00015863,2]
[351216079,1738439441572,-151.0,0.00015863,2]
[351216081,1738439441581,-151.0,0.00015863,2]
[351216083,1738439441590,-151.0,0.00015863,2]
[351216085,1738439441599,-151.0,0.00015863,2]
[351216088,1738439441609,-151.0,0.00015863,2]
[351216090,1738439441619,-2352.534614,0.00015863,2]
[351216092,1738439441629,-2352.534614,0.00015863,2]
[351216093,1738439441638,-239.001908,0.00015863,2]
[351216095,1738439441647,-200.130268,0.00015863,2]
[351216097,1738439441656,-239.001908,0.00015863,2]
[351216099,1738439441665,-151.0,0.00015863,2]
[351216101,1738439441674,-200.130268,0.00015863,2]
[351216103,1738439441683,-851.580421,0.00015863,2]
[351216105,1738439441692,-151.0,0.00015863,2]
[351216107,1738439441701,-851.580421,0.00015863,2]
[351216109,1738439441711,-151.0,0.00015863,2]
[351216111,1738439441720,-590.306728,0.00015863,2]
[351216113,1738439441729,-590.306728,0.00015863,2]
[351216115,1738439441738,-151.0,0.00015863,2]
[351216117,1738439441750,-151.0,0.00015863,2]
[351216119,1738439441759,-151.0,0.00015863,2]
[351216121,1738439441768,-151.0,0.00015863,2]
[351216123,1738439441778,-151.0,0.00015863,2]
[351216125,1738439441790,-437.949689,0.00015863,2]
[351216127,1738439441800,-152.739488,0.00015863,2]
[351216129,1738439441810,-151.0,0.00015863,2]
[351216131,1738439441820,-437.949689,0.00015863,2]
[351216132,1738439441830,-151.0,0.00015863,2]
[351216133,1738439441840,-151.0,0.00015863,2]
[351216135,1738439441849,-1274.576079,0.00015863,2]
[351216137,1738439441860,-1274.576079,0.00015863,2]
[351216139,1738439441870,-19831.0,0.00015863,2]
[351216141,1738439441878,-1947.6947,0.00015863,2]
[351216143,1738439441888,-151.0,0.00015869,2]
[351216145,1738439441897,-151.0,0.00015869,2]
[351216147,1738439441907,-151.0,0.00015869,2]
[351216149,1738439441916,-11516.7032593,0.00015869,2]
[351216151,1738439441926,-239.001908,0.00015871,2]
[351216153,1738439441935,-239.001908,0.00015871,2]
[351216155,1738439441944,-151.0,0.00015871,2]
[351216157,1738439441953,-437.949689,0.00015871,2]
[351216159,1738439441962,-151.0,0.00015871,2]
[351216161,1738439441971,-437.949689,0.00015871,2]
[351216163,1738439441980,-500.0,0.00015873,2]
[351216165,1738439441989,-207.51782621,0.00015873,2]
[351216167,1738439441999,-616.9874429,0.00015873,2]
[351216169,1738439442008,-154.93892047,0.00015873,2]
[351216170,1738439442018,-151.0,0.00015879,2]
[351216172,1738439442027,-151.135644,0.00015879,2]
[351216174,1738439442036,-151.0,0.00015879,2]
[351216176,1738439442045,-237.809648,0.00015879,2]
[351216179,1738439442059,-237.809648,0.00015879,2]
[351216180,1738439442068,-151.0,0.00015879,2]
[351216182,1738439442077,-151.0,0.00015879,2]
[351216184,1738439442087,-151.0,0.00015879,2]
[351216187,1738439442096,-168.44842,0.00015879,2]
[351216189,1738439442106,-168.44842,0.00015879,2]
[351216191,1738439442115,-300.0,0.00015879,2]
[351216193,1738439442124,-666.0,0.00015879,2]
[351216195,1738439442134,-178.012886,0.00015879,2]
[351216197,1738439442143,-300.0,0.00015879,2]
[351216199,1738439442151,-300.0,0.00015879,2]
[351216201,1738439442161,-666.0,0.00015879,2]
[351216203,1738439442169,-300.0,0.00015879,2]
[351216205,1738439442179,-300.0,0.00015879,2]
[351216207,1738439442188,-213185.79080675,0.0001588,2]
[351216209,1738439442201,-313.08807474,0.0001588,2]
[351216217,1738439442268,-25407.162189,0.0001588,2]
[351216219,1738439442279,-388.25889291,0.0001588,2]
[351216224,1738439442323,-352.98460006,0.0001588,2]
[351216351,1738439443479,-287.7407016,0.0001588,2]
[351216353,1738439443491,-567.60113264,0.0001588,2]
[351216620,1738439446391,-14297.12940371,0.0001562,2]
[351216622,1738439446401,-328.298064,0.00015779,2]
[351216623,1738439446410,-328.298064,0.0001578,2]
[351216625,1738439446420,-328.298064,0.00015863,2]
[351216627,1738439446429,-204612.98457852,0.0001588,2]
[351216645,1738439446602,-1496.13594763,0.0001588,2]
[351216647,1738439446614,-995.87192596,0.0001588,2]
[351216653,1738439446658,-2276.81997499,0.0001588,2]
[351217336,1738439477858,-200.0,0.00014916,2]
[351217337,1738439477882,-400.0,0.00015,5]
[351217338,1738439477902,-1080.9986,0.00015057,2]
[351217339,1738439477926,-900.0,0.000151,5]
[351217340,1738439477948,-1300.0,0.000152,5]
[351217341,1738439533478,-1800.0,0.000153,5]
[351217342,1738439533500,-150.0,0.0001535,2]
[351217343,1738439533522,-150.0,0.0001535,2]
[351217344,1738439533544,-2200.0,0.000154,5]
[351217345,1738439533567,-275.96267494,0.00015448,2]
[351217346,1738439533588,-150.0,0.00015476,2]
[351217347,1738439533610,-150.0,0.00015476,2]
[351217348,1738439533634,-400.0,0.000155,5]
[351217349,1738439533655,-991.5576,0.0001558,2]
[351217350,1738439533677,-400.0,0.000156,5]
[351217351,1738439533697,-1000.0,0.000156,2]
[351217352,1738439533718,-2500.0,0.000156,2]
[351217353,1738439533739,-14297.12940369,0.0001564,2]
[351217354,1738439533760,-14297.12940369,0.0001566,2]
[351217355,1738439533781,-5000.0,0.00015671,2]
[351217356,1738439533801,-14297.12940369,0.0001568,2]
[351217357,1738439533825,-14297.12940369,0.000157,2]
[351217358,1738439533847,-400.0,0.000157,5]
[351217359,1738439533870,-14297.12940369,0.00015719,2]
[351217360,1738439533894,-9065.83410661,0.00015739,2]
[351217361,1738439589384,630.691503,0.00023,120]
[351217362,1738439591502,2000.0,0.00023,120]
[351217363,1738439603713,200.0,0.00023,120]
[351217365,1738440054903,150.8,0.00016658,30]
[351217366,1738440192125,2000.0,0.00023,120]
[351217367,1738440204911,222.269763,0.00023,120]
[351217370,1738440274378,225.04,0.00010137,2]
[351217382,1738440631748,-491.67,0.0001268,2]
[351217383,1738440631854,-163.78,0.0001268,2]
[351217384,1738440631864,-550.0,0.00013,2]
[351217385,1738440631873,-1024.84613161,0.00013709,2]
[351217386,1738440631882,-264.67798862,0.0001429,7]
[351217387,1738440631893,-181.06,0.00014327,2]
[351217388,1738440631902,-289.42,0.00014333,2]
[351217389,1738440631912,-1000.0,0.00014406,2]
[351217390,1738440631921,-1500.0,0.00014513,2]
[351217391,1738440631931,-1107.28,0.00014542,2]
[351217392,1738440631940,-513.42,0.00014634,2]
[351217393,1738440631949,-500.0,0.00014725,2]
[351217394,1738440631959,-173.58,0.00014797,2]
[351217395,1738440631968,-161.22,0.00014882,2]
[351217396,1738440631979,-161.22,0.00014897,2]
[351217397,1738440631988,-170.59,0.00014898,2]
[351217398,1738440631997,-291.07534366,0.00014901,2]
[351217399,1738440632007,-150.0,0.00014902,2]
[351217400,1738440632017,-161.22,0.00014912,2]
[351217401,1738440632027,-424.41,0.00014921,2]
[351217402,1738440632036,-161.22,0.00014927,2]
[351217403,1738440632045,-161.22,0.00014942,2]
[351217404,1738440632054,-300.0,0.00014943,2]
[351217405,1738440632064,-655.45,0.00014944,2]
[351217406,1738440632074,-1519.0,0.00014951,2]
[351217407,1738440632084,-161.22,0.00014957,2]
[351217408,1738440632093,-788.39751151,0.00014965,2]
[351217409,1738440632102,-190.28,0.00014987,2]
[351217410,1738440632112,-878.38,0.00015041,2]
[351217411,1738440632121,-765.93,0.00015041,2]
[351217412,1738440632131,-342.83202927,0.00015334,2]
[351217413,1738440632140,-150.0,0.00015533,2]
[351217414,1738440632152,-3909.0,0.00015533,2]
[351217415,1738440632161,-567.654,0.00015533,2]
[351217416,1738440632171,-157.95451564,0.00015562,2]
[351217417,1738440632183,-410.6677257,0.00015569,2]
[351217418,1738440632192,-1161.6079,0.0001558,2]
[351217419,1738440632201,-500.0,0.00015613,2]
[351217420,1738440632211,-2285.3964,0.0001568,2]
[351217421,1738440632220,-28411.53240091,0.00015744,2]
[351217422,1738440632230,-4948.63183962,0.00015763,2]
[351217423,1738440632239,-281.390489,0.00015771,2]
[351217424,1738440632248,-281.390489,0.00015771,2]
[351217425,1738440632258,-328.298064,0.00015779,2]
[351217426,1738440632268,-281.390489,0.00015779,2]
[351217427,1738440632277,-281.390489,0.00015779,2]
[351217428,1738440632286,-328.298064,0.0001578,2]
[351217429,1738440632295,-151.629269,0.0001578,2]
[351217430,1738440632304,-281.390489,0.0001578,2]
[351217431,1738440632313,-281.390489,0.0001578,2]
[351217432,1738440632322,-6911.8111,0.0001578,2]
[351217433,1738440632331,-53074.6902,0.0001578,2]
[351217434,1738440632340,-1159.78315104,0.0001578,2]
[351217435,1738440632350,-159.20152843,0.00015818,2]
[351217436,1738440632359,-365.50111691,0.00015818,2]
[351217437,1738440632368,-500.0,0.00015826,2]
[351217438,1738440632377,-1300.0,0.00015826,2]
[351217439,1738440632387,-4617.87330608,0.00015833,2]
[351217440,1738440632399,-330.75853349,0.00015833,2]
[351217441,1738440632408,-328.298064,0.00015863,2]
[351217442,1738440632417,-281.390489,0.00015863,2]
[351217443,1738440632426,-281.390489,0.00015863,2]
[351217444,1738440632435,-12476.4285309,0.00015869,2]
[351217445,1738440632444,-2529.2629102,0.00015869,2]
[351217446,1738440632454,-4176.4437839,0.00015869,2]
[351217447,1738440632463,-1116.7559455,0.00015869,2]
[351217448,1738440632472,-175.32638408,0.00015879,2]
[351217449,1738440632481,-298.44641571,0.00015879,2]
[351217450,1738440632491,-124588.25595422,0.0001588,2]
[351217451,1738440632502,-22086.094363,0.0001588,2]
[351217455,1738440637358,-1003.79509965,0.0001588,2]
[351217456,1738440637445,-253.66096766,0.0001588,2]
[351217457,1738440637457,-318.18859046,0.0001588,2]
[351217458,1738440637469,-3623.06666235,0.0001588,2]
[351217459,1738440637481,-3169.225566,0.0001588,2]
[351217460,1738440637551,-2644.81159472,0.0001588,2]
[351217461,1738440637563,-50750.0,0.0001588,2]
[351217481,1738440639558,-517440.18546689,0.0001588,2]
[351217482,1738440639568,-183.589241,0.0001588,2]
[351217483,1738440639577,-151.0,0.0001588,2]
[351217484,1738440639586,-206.679508,0.0001588,2]
[351217485,1738440639595,-328.298064,0.0001588,2]
[351217486,1738440639604,-328.298064,0.0001588,2]
[351217487,1738440639613,-328.298064,0.0001588,2]
[351217488,1738440639622,-328.298064,0.0001588,2]
[351217489,1738440639631,-281.390489,0.0001588,2]
[351217490,1738440639640,-281.390489,0.0001588,2]
[351217491,1738440639649,-281.390489,0.0001588,2]
[351217492,1738440639658,-281.390489,0.0001588,2]
[351217493,1738440639667,-4000.0,0.0001588,2]
[351217494,1738440639676,-2223.05228276,0.00015891,2]
[351217495,1738440639685,-1041.0,0.000159,2]
[351217496,1738440639694,-151.0,0.000159,2]
[351217497,1738440639704,-151.0,0.000159,2]
[351217498,1738440639713,-328.298064,0.000159,2]
[351217499,1738440639722,-328.298064,0.000159,2]
[351217500,1738440639730,-328.298064,0.000159,2]
[351217501,1738440639740,-328.298064,0.000159,2]
[351217502,1738440639749,-328.298064,0.000159,2]
[351217503,1738440639758,-328.298064,0.000159,2]
[351217504,1738440639769,-281.390489,0.000159,2]
[351217505,1738440639778,-281.390489,0.000159,2]
[351217506,1738440639787,-281.390489,0.000159,2]
[351217507,1738440639796,-281.390489,0.000159,2]
[351217508,1738440639805,-281.390489,0.000159,2]
[351217509,1738440639814,-281.390489,0.000159,2]
[351217510,1738440639823,-151.0,0.000159,2]
[351217511,1738440639832,-151.0,0.000159,2]
[351217512,1738440639840,-151.0,0.000159,2]
[351217513,1738440639849,-151.0,0.000159,2]
[351217514,1738440639858,-151.0,0.000159,2]
[351217515,1738440639867,-151.0,0.000159,2]
[351217516,1738440639875,-151.0,0.000159,2]
[351217517,1738440639884,-214.028683,0.000159,2]
[351217518,1738440639893,-214.028683,0.000159,2]
[351217519,1738440639903,-86956.97370049,0.000159,2]
[351217520,1738440639912,-255.76182023,0.00015902,2]
[351217521,1738440639921,-4948.63183957,0.00015903,2]
[351217522,1738440639931,-7383.90905256,0.00015903,2]
[351217524,1738440639940,-7383.90905256,0.00015908,2]
[351217526,1738440639949,-255.76182023,0.0001591,2]
[351217528,1738440639958,-2223.05228276,0.00015912,2]
[351217530,1738440639967,-2223.05228276,0.00015915,2]
[351217532,1738440639976,-50675.47227922,0.00015929,2]
[351217534,1738440639985,-34847.13541271,0.0001593,2]
[351217536,1738440639994,-158397.63837395,0.00015932,2]
[351217538,1738440640004,-1159.78315103,0.0001594,2]
[351217540,1738440640012,-4089.59730063,0.00015942,2]
[351217541,1738440640023,-4089.59730063,0.00015952,2]
[351217544,1738440640033,-5925.58854263,0.00015956,2]
[351217545,1738440640042,-255.76182023,0.00015961,2]
[351217547,1738440640051,-158397.63837395,0.00015963,2]
[351217549,1738440640061,-34847.13541271,0.00015972,2]
[351217551,1738440640070,-4948.63183957,0.00015973,2]
[351217553,1738440640079,-34847.13541271,0.00015974,2]
[351217555,1738440640088,-7383.90905256,0.00015975,2]
[351217557,1738440640097,-7383.90905256,0.00015975,2]
[351217559,1738440640106,-2223.05228276,0.00015978,2]
[351217561,1738440640115,-255.76182023,0.00015984,2]
[351217563,1738440640124,-2486.28366757,0.00015991,2]
[351217565,1738440640134,-444.46966061,0.00016,2]
[351217567,1738440640143,-151.0,0.00016,2]
[351217569,1738440640151,-328.298064,0.00016,2]
[351217571,1738440640160,-328.298064,0.00016,2]
[351217573,1738440640169,-281.390489,0.00016,2]
[351217575,1738440640178,-281.390485,0.00016,2]
[351217577,1738440640191,-151.0,0.00016013,2]
[351217579,1738440640201,-178.437334,0.00016027,2]
[351217581,1738440640210,-4948.63183957,0.00016043,2]
[351217583,1738440640219,-300.0,0.00016055,2]
[351217585,1738440640230,-201.87389935,0.00016055,2]
[351217587,1738440640239,-444.46966061,0.00016082,2]
[351217589,1738440640248,-40901.5727,0.000161,2]
[351217591,1738440640257,-1159.78315103,0.000161,2]
[351217593,1738440640266,-300.0,0.00016106,2]
[351217594,1738440640277,-159.20152843,0.00016109,2]
[351217596,1738440640287,-4948.63183957,0.00016112,2]
[351217616,1738440640456,-300.0,0.00016116,2]
[351217618,1738440640466,-300.0,0.00016123,2]
[351217620,1738440640475,-666.0,0.00016123,2]
[351217622,1738440640484,-151.0,0.00016124,2]
[351217624,1738440640493,-328.298064,0.00016124,2]
[351217626,1738440640502,-328.298065,0.00016124,2]
[351217628,1738440640511,-300.0,0.00016158,2]
[351217630,1738440640520,-666.0,0.00016158,2]
[351217632,1738440640530,-300.0,0.00016158,2]
[351217634,1738440640539,-178.437334,0.00016159,2]
[351217636,1738440640548,-150.0,0.00016159,2]
[351217638,1738440640558,-150.0,0.00016159,2]
[351217640,1738440640567,-150.0,0.00016159,2]
[351217642,1738440640576,-1271.0,0.00016159,2]
[351217644,1738440640585,-2022.0,0.00016159,2]
[351217646,1738440640594,-637.0,0.00016159,2]
[351217648,1738440640603,-568.0,0.00016159,2]
[351217650,1738440640612,-1867.0,0.00016159,2]
[351217652,1738440640621,-1263.0,0.00016159,2]
[351217654,1738440640630,-2952.0,0.00016159,2]
[351217656,1738440640639,-782.0,0.00016159,2]
[351217658,1738440640650,-907.0,0.00016159,2]
[351217660,1738440640658,-538.0,0.00016159,2]
[351217661,1738440640667,-444.46966061,0.00016164,2]
[351217662,1738440640676,-365.50111688,0.00016165,2]
[351217665,1738440640686,-507.01333327,0.00016173,2]
[351217667,1738440640696,-500.41831257,0.00016173,2]
[351217669,1738440640705,-173.34132476,0.00016182,2]
[351217670,1738440640715,-4948.63183957,0.00016182,2]
[351217672,1738440640724,-300.0,0.00016187,2]
[351217674,1738440640733,-666.0,0.00016187,2]
[351217676,1738440640742,-300.0,0.00016187,2]
[351217678,1738440640751,-300.0,0.00016188,2]
[351217680,1738440640760,-666.0,0.00016188,2]
[351217682,1738440640771,-300.0,0.00016188,2]
[351217684,1738440640780,-300.0,0.00016188,2]
[351217685,1738440640790,-151.0,0.00016189,2]
[351217686,1738440640800,-151.0,0.00016189,2]
[351217687,1738440640809,-193.317779,0.00016189,2]
[351217688,1738440640818,-151.0,0.00016189,2]
[351217689,1738440640827,-151.0,0.00016189,2]
[351217690,1738440640836,-214.028683,0.00016189,2]
[351217691,1738440640845,-214.028683,0.00016189,2]
[351217692,1738440640854,-12476.4285309,0.00016189,2]
[351217693,1738440640863,-2554.5659094,0.00016189,2]
[351217694,1738440640872,-4218.2253454,0.00016189,2]
[351217695,1738440640882,-1127.9280837,0.00016189,2]
[351217696,1738440640891,-456618.44834751,0.00016192,2]
[351217697,1738440640900,-5766.92450237,0.00016192,2]
[351217698,1738440640909,-904598.20302437,0.00016192,2]
[351217699,1738440640932,-5087.57709995,0.00016192,2]
[351217701,1738440640961,-355.16517183,0.00016192,2]
[351217703,1738440640973,-2450.59284456,0.00016192,2]
[351217706,1738440640990,-17725.6000048,0.00016192,2]
[351217709,1738440641009,-4776.53730052,0.00016192,2]
[351217711,1738440641023,-779.98307716,0.00016192,2]
[351217824,1738440642607,-6720.02557286,0.00016192,2]
[351217830,1738440642926,-13771.52521136,0.00016192,2]
[351217832,1738440642938,-5806.16751581,0.00016192,2]
[351217862,1738440645454,-3500.10340203,0.00016192,2]
[351217863,1738440645466,-406.327584,0.00016192,2]
[351217864,1738440645478,-460.29638715,0.00016192,2]
[351217943,1738440794107,2000.0,0.00023,120]
[351217944,1738441107121,1864.617337,0.00023,120]
[351217945,1738441170279,178.49,0.00010137,2]
[351217947,1738441393773,2000.0,0.00023,120]
[351217949,1738441508742,277345.98490019,0.00012,2]
[351217951,1738441554571,4974.51214972,0.00011688,2]
[351217955,1738441681138,41637.68766966,0.0001,2]
[351218001,1738441831649,-635.83,0.00012532,2]
[351218002,1738441831660,-150.0,0.00012867,2]
[351218003,1738441831670,-150.0,0.00013785,2]
[351218004,1738441831959,-200.0,0.0001389,2]
[351218005,1738441831985,-200.0,0.0001412,2]
[351218006,1738441831995,-150.0,0.00014271,2]
[351218007,1738441832004,-200.0,0.0001434,2]
[351218008,1738441832014,-286.13,0.00014384,2]
[351218009,1738441832026,-339.52,0.00014407,2]
[351218010,1738441832036,-150.0,0.00014481,2]
[351218011,1738441832046,-200.0,0.0001457,2]
[351218012,1738441832055,-8252.50365074,0.0001464,2]
[351218013,1738441832094,-5446.14988575,0.0001464,2]
[351218014,1738441832105,-1945.55950178,0.0001464,2]
[351218015,1738441832116,-930.31758053,0.0001464,2]
[351218016,1738441832127,-812.5893812,0.0001464,2]
[351218017,1738441832136,-1000.0,0.00014713,2]
[351218018,1738441832146,-200.0,0.0001479,2]
[351218019,1738441832155,-635.83,0.00014795,2]
[351218020,1738441832165,-521.5806188,0.00015,10]
[351218021,1738441832176,-1583.16,0.00015,10]
[351218022,1738441832187,-2054.69731219,0.00015,10]
[351218024,1738441832199,-301.52774393,0.00015,10]
[351218026,1738441832210,-457.32324151,0.00015,10]
[351218029,1738441832231,-550.0,0.00015,10]
[351218030,1738441832242,-329.7,0.00015,10]
[351218032,1738441832253,-512.74998295,0.00015,10]
[351218035,1738441832271,-6135.57647051,0.00015,10]
[351218037,1738441832281,-414.44552929,0.00015,10]
[351218039,1738441832291,-200.0,0.0001502,2]
[351218041,1738441832301,-300.0,0.000151,2]
[351218043,1738441832311,-590.62,0.00015185,2]
[351218045,1738441832320,-200.0,0.0001524,2]
[351218048,1738441832329,-300.0,0.00015275,2]
[351218050,1738441832338,-214.37,0.00015276,2]
[351218052,1738441832347,-171.17,0.00015321,2]
[351218053,1738441832357,-200.0,0.0001547,2]
[351218055,1738441832366,-200.0,0.0001569,2]
[351218057,1738441832375,-1509.7599374,0.0001577,2]
[351218060,1738441832386,-614.72573488,0.0001577,2]
[351218062,1738441832397,-387.52852772,0.0001577,2]
[351218064,1738441832406,-3255.2924,0.0001577,2]